[Event "GER-chT Youth Countries 2020"]
[Site "Berlin"]
[Date "2020.09.30"]
[Round "2"]
[White "Marrufo, Emilia"]
[Black "Eichhorn, Mathilda"]
[Result "0-1"]
[ECO "A40"]
[WhiteElo "796"]
[BlackElo "1532"]
[Annotator "NA"]
[PlyCount "68"]
[EventDate "2020.09.30"]
[EventType "team-tourn"]
[EventRounds "7"]
[EventCountry "GER"]
[SourceTitle "playchess.com"]
[Source "ChessBase"]
[SourceQuality "1"]
[WhiteTeam "Bremen"]
[BlackTeam "Thüringen"]
[TimeControl "30/5400+30:0"]

1. d4 {[%emt 0:00:00]} e6 {[%emt 0:00:00]} 2. e3 {[%emt 0:00:00]} d5 {[%emt 0:00:00]} 3. Bd3 {[%emt 0:00:09]} Nf6 {[%emt 0:00:00]} 4. f4 {[%emt 0:00:19]} c5 {[%emt 0:00:17]} 5. c3 {[%emt 0:00:10]} Nc6 {[%emt 0:00:16]} 6. Nf3 {[%emt 0:00:22]} Qb6 {[%emt 0:00:30]} 7. Bc2 {[%emt 0:00:45]} cxd4 {[%emt 0:04:15]} 8. cxd4 {[%emt 0:00:14]} Bb4+ {[%emt 0:01:25]} 9. Bd2 {[%emt 0:01:12]} Bxd2+ {[%emt 0:00:14]} 10. Qxd2 {[%emt 0:00:29]} Qxb2 {[%emt 0:00:19]} 11. Qc3 {[%emt 0:00:53]} Qb6 {[%emt 0:00:35]} 12. O-O {[%emt 0:02:23]} Bd7 {[%emt 0:00:32]} 13. Nbd2 {[%emt 0:02:11]} Rc8 {[%emt 0:02:54]} 14. Qd3 {[%emt 0:01:16]} Qd8 {[%emt 0:01:31]} 15. Ne5 {[%emt 0:02:43]} Nb4 {[%emt 0:00:50]} 16. Qb3 {[%emt 0:02:09]} Nxc2 {[%emt 0:01:22]} 17. Rac1 {[%emt 0:00:33]} Nxe3 {[%emt 0:00:48]} 18. Qxe3 {[%emt 0:00:26]} O-O {[%emt 0:00:23]} 19. Ndf3 {[%emt 0:02:17]} Bb5 {[%emt 0:00:24]} 20. Rfe1 {[%emt 0:02:14]} Qa5 {[%emt 0:01:22]} 21. Rb1 {[%emt 0:03:47]} Ne4 {[%emt 0:03:26]} 22. Ng5 {[%emt 0:05:27]} Rc3 {[%emt 0:00:53]} 23. Rxb5 {[%emt 0:02:14]} Rxe3 {[%emt 0:00:10]} 24. Rxe3 {[%emt 0:00:21]} Qxb5 {[%emt 0:00:10]} 25. Nxe4 {[%emt 0:00:53]} dxe4 {[%emt 0:00:13]} 26. Rxe4 {[%emt 0:00:05]} Qb1+ {[%emt 0:00:12]} 27. Kf2 {[%emt 0:00:15]} Qxe4 {[%emt 0:00:05]} 28. g3 {[%emt 0:00:40]} f6 {[%emt 0:00:18]} 29. Nd7 {[%emt 0:00:44]} Qxd4+ {[%emt 0:00:07]} 30. Kg2 {[%emt 0:00:58]} Qxd7 {[%emt 0:00:07]} 31. h4 {[%emt 1:30:14]} Rc8 {[%emt 1:30:11]} 32. a3 {[%emt 0:00:19]} Rc2+ {[%emt 0:00:07]} 33. Kh3 {[%emt 0:00:08]} e5+ {[%emt 0:00:22]} 34. g4 {[%emt 0:00:34]} Qd3# 0-1

[Event "GER-chT Youth Countries 2020"]
[Site "Berlin"]
[Date "2020.10.01"]
[Round "3"]
[White "Vogel, Roven"]
[Black "Fromm, Marius"]
[Result "0-1"]
[ECO "A61"]
[WhiteElo "2456"]
[BlackElo "2190"]
[Annotator "ChessBase"]
[PlyCount "50"]
[EventDate "2020.09.30"]
[EventType "team-tourn"]
[EventRounds "7"]
[EventCountry "GER"]
[SourceTitle "playchess.com"]
[Source "ChessBase"]
[SourceQuality "1"]
[TimeControl "30/5400+30:0"]

1. d4 {[%emt 0:00:00]} Nf6 {[%emt 0:00:00]} 2. c4 {[%emt 0:00:00]} c5 {[%emt 0:00:00]} 3. d5 {[%emt 0:00:27]} e6 {[%emt 0:00:00]} 4. Nc3 {[%emt 0:00:06]} exd5 {[%emt 0:00:00]} 5. cxd5 {[%emt 0:00:06]} d6 {[%emt 0:00:01]} 6. Nf3 {[%emt 0:02:01]} g6 {[%emt 0:00:14]} 7. h3 {[%emt 0:00:19]} Bg7 {[%emt 0:00:06]} 8. e4 {[%emt 0:00:08]} O-O {[%emt 0:00:05]} 9. Bd3 {[%emt 0:00:07]} b5 {[%emt 0:00:05]} 10. Nxb5 {[%emt 0:00:28]} Re8 {[%emt 0:00:18]} 11. Nc3 {[%emt 0:06:10]} Nxe4 {[%emt 0:00:16]} 12. Nxe4 {[%emt 0:00:09]} f5 {[%emt 0:01:13]} 13. Nfg5 {[%emt 0:04:23]} fxe4 {[%emt 0:08:49]} 14. Bxe4 {[%emt 0:00:25]} Bxb2 {[%emt 0:24:18]} 15. Ne6 {[%emt 0:36:00]} Qh4 {[%emt 0:05:32]} 16. g4 {[%emt 0:21:59]} Bxa1 {[%emt 0:13:46]} 17. Bg5 {[%emt 0:00:16]} Rxe6 {[%emt 0:00:10]} 18. Bxh4 {[%emt 0:03:22]} Rxe4+ {[%emt 0:00:05]} 19. Kf1 {[%emt 0:00:06]} Bd4 {[%emt 0:01:48]} 20. Bg3 {[%emt 0:01:06]} Nd7 {[%emt 0:02:43]} 21. Qa4 {[%emt 0:03:15]} Nb6 {[%emt 0:03:37]} 22. Qc6 {[%emt 0:00:07]} Ba6+ {[%emt 0:00:06]} 23. Kg2 {[%emt 0:00:25]} Rf8 {[%emt 0:00:46]} 24. Qxd6 {[%emt 0:03:44]} Bc4 {[%emt 0:02:51]} 25. Kh2 {[%emt 0:04:07]} Rxf2+ {[%emt 0:01:11]} 0-1

[Event "GER-chT Youth Countries 2020"]
[Site "Berlin"]
[Date "2020.10.01"]
[Round "3"]
[White "Reuker, Jari"]
[Black "Goldbeck, Lars"]
[Result "0-1"]
[ECO "D45"]
[WhiteElo "2401"]
[BlackElo "2273"]
[Annotator "ChessBase"]
[PlyCount "77"]
[EventDate "2020.09.30"]
[EventType "team-tourn"]
[EventRounds "7"]
[EventCountry "GER"]
[SourceTitle "playchess.com"]
[Source "ChessBase"]
[SourceQuality "1"]
[TimeControl "30/5400+30:0"]

1. d4 {[%emt 0:00:00]} Nf6 {[%emt 0:00:00]} 2. c4 {[%emt 0:00:00]} c6 {[%emt 0:00:00]} 3. Nc3 {[%emt 0:06:35]} d5 {[%emt 0:00:00]} 4. e3 {[%emt 0:00:11]} e6 {[%emt 0:00:00]} 5. Nf3 {[%emt 0:00:05]} Nbd7 {[%emt 0:00:03]} 6. Be2 {[%emt 0:02:08]} Bd6 {[%emt 0:02:48]} 7. O-O {[%emt 0:00:30]} O-O {[%emt 0:00:02]} 8. b3 {[%emt 0:04:17]} b6 {[%emt 0:00:25]} 9. Bb2 {[%emt 0:00:40]} Bb7 {[%emt 0:00:02]} 10. Re1 {[%emt 0:03:12]} Ne4 {[%emt 0:10:33]} 11. Nxe4 {[%emt 0:12:32]} dxe4 {[%emt 0:00:35]} 12. Nd2 {[%emt 0:00:28]} f5 {[%emt 0:00:04]} 13. a4 {[%emt 0:05:03]} a5 {[%emt 0:08:16]} 14. Ba3 {[%emt 0:08:53]} c5 {[%emt 0:01:45]} 15. Nb1 {[%emt 0:03:52]} Rf6 {[%emt 0:08:38]} 16. g3 {[%emt 0:06:16]} Qe7 {[%emt 0:02:44]} 17. Nc3 {[%emt 0:02:08]} Rd8 {[%emt 0:03:04]} 18. Nb5 {[%emt 0:01:19]} Bb8 {[%emt 0:00:02]} 19. Ra2 {[%emt 0:01:12]} Ne5 {[%emt 0:13:14]} 20. Rd2 {[%emt 0:00:54]} Nf3+ {[%emt 0:02:03]} 21. Bxf3 {[%emt 0:00:05]} exf3 {[%emt 0:00:01]} 22. dxc5 {[%emt 0:03:10]} Rxd2 {[%emt 0:00:03]} 23. Qxd2 {[%emt 0:00:02]} bxc5 {[%emt 0:00:01]} 24. Rd1 {[%emt 0:00:24]} Rf8 {[%emt 0:02:19]} 25. Qxa5 {[%emt 0:06:33]} f4 {[%emt 0:05:27]} 26. exf4 {[%emt 0:00:37]} Bxf4 {[%emt 0:00:01]} 27. Qb6 {[%emt 0:03:27]} Be3 {[%emt 0:02:15]} 28. Qd6 {[%emt 0:14:45]} Qg5 {[%emt 0:08:18]} 29. Qxe6+ {[%emt 0:01:11]} Kh8 {[%emt 0:00:01]} 30. Nd6 {[%emt 0:02:58]} Qh5 {[%emt 0:05:58]} 31. Nf7+ {[%emt 1:31:09]} Kg8 {[%emt 1:30:01]} 32. Nd6+ {[%emt 0:00:20]} Kh8 {[%emt 0:00:09]} 33. Nf7+ {[%emt 0:00:03]} Kg8 {[%emt 0:00:10]} 34. Ng5+ {[%emt 0:01:49]} Kh8 {[%emt 0:00:05]} 35. Qxe3 {[%emt 0:00:24]} h6 {[%emt 0:00:26]} 36. Qe7 {[%emt 0:01:27]} Re8 {[%emt 0:03:27]} 37. Rd8 {[%emt 0:00:35]} Bc6 {[%emt 0:00:22]} 38. Qf8+ {[%emt 0:00:18]} Rxf8 {[%emt 0:00:01]} 39. Rxf8# 0-1

[Event "GER-chT Youth Countries 2020"]
[Site "Berlin"]
[Date "2020.10.01"]
[Round "3"]
[White "Faerber, David"]
[Black "Pubantz, Jan"]
[Result "1/2-1/2"]
[ECO "B10"]
[WhiteElo "2321"]
[BlackElo "2295"]
[Annotator "ChessBase"]
[PlyCount "69"]
[EventDate "2020.09.30"]
[EventType "team-tourn"]
[EventRounds "7"]
[EventCountry "GER"]
[SourceTitle "playchess.com"]
[Source "ChessBase"]
[SourceQuality "1"]
[TimeControl "30/5400+30:0"]

1. e4 {[%emt 0:00:00]} c6 {[%emt 0:00:00]} 2. Nf3 {[%emt 0:00:00]} d5 {[%emt 0:00:00]} 3. d3 {[%emt 0:00:00]} Bg4 {[%emt 0:07:17]} 4. Be2 {[%emt 0:04:34]} e6 {[%emt 0:04:16]} 5. Nbd2 {[%emt 0:00:58]} Nd7 {[%emt 0:02:25]} 6. O-O {[%emt 0:11:23]} Qc7 {[%emt 0:09:21]} 7. d4 {[%emt 0:07:28]} dxe4 {[%emt 0:03:16]} 8. Nxe4 {[%emt 0:00:09]} Ngf6 {[%emt 0:00:30]} 9. Nxf6+ {[%emt 0:01:08]} Nxf6 {[%emt 0:00:10]} 10. h3 {[%emt 0:00:15]} Bf5 {[%emt 0:05:37]} 11. c4 {[%emt 0:08:57]} Be7 {[%emt 0:08:25]} 12. b3 {[%emt 0:08:38]} O-O {[%emt 0:01:04]} 13. Bb2 {[%emt 0:00:28]} Rfd8 {[%emt 0:01:27]} 14. Bd3 {[%emt 0:08:37]} Bxd3 {[%emt 0:01:41]} 15. Qxd3 {[%emt 0:00:21]} c5 {[%emt 0:03:08]} 16. Qe3 {[%emt 0:05:46]} Ne8 {[%emt 0:18:55]} 17. Rfd1 {[%emt 0:07:47]} Bf6 {[%emt 0:01:19]} 18. Rd2 {[%emt 0:01:02]} Nd6 {[%emt 0:01:45]} 19. Qf4 {[%emt 0:20:42]} cxd4 {[%emt 0:08:29]} 20. Bxd4 {[%emt 0:01:02]} Bxd4 {[%emt 0:01:03]} 21. Rxd4 {[%emt 0:00:22]} Qe7 {[%emt 0:01:22]} 22. Rad1 {[%emt 0:02:22]} Nf5 {[%emt 0:00:46]} 23. R4d2 {[%emt 0:00:46]} h6 {[%emt 0:05:45]} 24. Ne5 {[%emt 0:04:00]} Rxd2 {[%emt 0:07:09]} 25. Qxd2 {[%emt 0:00:18]} Qc7 {[%emt 0:00:21]} 26. Nf3 {[%emt 0:02:09]} Rc8 {[%emt 0:02:30]} 27. Qd7 {[%emt 0:01:04]} Ne7 {[%emt 0:01:01]} 28. Qxc7 {[%emt 0:03:09]} Rxc7 {[%emt 0:00:04]} 29. Ne5 {[%emt 0:00:13]} f6 {[%emt 0:01:49]} 30. Rd8+ {[%emt 0:00:31]} Kh7 {[%emt 0:00:06]} 31. Rd7 {[%emt 1:30:40]} Rxd7 {[%emt 1:30:08]} 32. Nxd7 {[%emt 0:00:02]} e5 {[%emt 0:00:18]} 33. Kf1 {[%emt 0:00:59]} Kg6 {[%emt 0:00:33]} 34. Ke2 {[%emt 0:00:30]} Kf7 {[%emt 0:01:06]} 35. Nc5 {[%emt 0:00:31]} 1/2-1/2

[Event "GER-chT Youth Countries 2020"]
[Site "Berlin"]
[Date "2020.10.01"]
[Round "3"]
[White "Richter, Nils"]
[Black "Weishaeutel, Moritz"]
[Result "1/2-1/2"]
[ECO "A30"]
[WhiteElo "2307"]
[BlackElo "2222"]
[Annotator "ChessBase"]
[PlyCount "66"]
[EventDate "2020.09.30"]
[EventType "team-tourn"]
[EventRounds "7"]
[EventCountry "GER"]
[SourceTitle "playchess.com"]
[Source "ChessBase"]
[SourceQuality "1"]
[TimeControl "30/5400+30:0"]

1. c4 {[%emt 0:00:00]} c5 {[%emt 0:00:00]} 2. Nf3 {[%emt 0:00:00]} Nc6 {[%emt 0:00:00]} 3. e3 {[%emt 0:00:01]} Nf6 {[%emt 0:00:01]} 4. Nc3 {[%emt 0:00:08]} g6 {[%emt 0:00:20]} 5. d4 {[%emt 0:00:26]} cxd4 {[%emt 0:00:07]} 6. exd4 {[%emt 0:00:10]} d5 {[%emt 0:00:07]} 7. cxd5 {[%emt 0:00:08]} Nxd5 {[%emt 0:00:04]} 8. Qb3 {[%emt 0:00:44]} e6 {[%emt 0:00:38]} 9. Bb5 {[%emt 0:00:32]} Bg7 {[%emt 0:02:21]} 10. O-O {[%emt 0:00:16]} O-O {[%emt 0:00:29]} 11. Bxc6 {[%emt 0:00:28]} bxc6 {[%emt 0:00:01]} 12. Re1 {[%emt 0:00:12]} Qc7 {[%emt 0:03:26]} 13. a3 {[%emt 0:20:13]} Nxc3 {[%emt 0:43:31]} 14. Qxc3 {[%emt 0:01:20]} Bb7 {[%emt 0:00:12]} 15. Ne5 {[%emt 0:15:18]} Rfd8 {[%emt 0:04:20]} 16. Bf4 {[%emt 0:03:46]} Qb6 {[%emt 0:00:20]} 17. Rad1 {[%emt 0:02:04]} Qb5 {[%emt 0:04:13]} 18. h4 {[%emt 0:09:24]} a5 {[%emt 0:08:47]} 19. h5 {[%emt 0:08:13]} a4 {[%emt 0:03:40]} 20. h6 {[%emt 0:03:05]} Bh8 {[%emt 0:03:45]} 21. Ng4 {[%emt 0:11:13]} Qf5 {[%emt 0:02:18]} 22. Be5 {[%emt 0:00:18]} f6 {[%emt 0:08:23]} 23. Ne3 {[%emt 0:00:26]} Qg5 {[%emt 0:00:01]} 24. Bg3 {[%emt 0:00:29]} Qxh6 {[%emt 0:00:18]} 25. Nc4 {[%emt 0:01:16]} Qh5 {[%emt 0:04:50]} 26. Nd6 {[%emt 0:02:30]} Bc8 {[%emt 0:02:08]} 27. Qxc6 {[%emt 0:01:58]} Bd7 {[%emt 0:00:01]} 28. Qc4 {[%emt 0:02:43]} Qd5 {[%emt 0:01:59]} 29. Qxd5 {[%emt 0:01:46]} exd5 {[%emt 0:00:01]} 30. Rc1 {[%emt 0:04:26]} Ra7 {[%emt 0:01:07]} 31. Rc5 {[%emt 1:33:21]} f5 {[%emt 1:33:23]} 32. Be5 {[%emt 0:01:09]} Bxe5 {[%emt 0:00:06]} 33. dxe5 {[%emt 0:01:31]} Be6 {[%emt 0:00:39]} 1/2-1/2

[Event "GER-chT Youth Countries 2020"]
[Site "Berlin"]
[Date "2020.10.01"]
[Round "3"]
[White "Arndt, Magnus"]
[Black "Krastev, Alexander"]
[Result "0-1"]
[ECO "A45"]
[WhiteElo "2298"]
[BlackElo "2340"]
[Annotator "ChessBase"]
[PlyCount "69"]
[EventDate "2020.09.30"]
[EventType "team-tourn"]
[EventRounds "7"]
[EventCountry "GER"]
[SourceTitle "playchess.com"]
[Source "ChessBase"]
[SourceQuality "1"]
[TimeControl "30/5400+30:0"]

1. d4 {[%emt 0:00:00]} Nf6 {[%emt 0:00:00]} 2. Bg5 {[%emt 0:00:00]} c5 {[%emt 0:00:06]} 3. d5 {[%emt 0:00:00]} b5 {[%emt 0:00:27]} 4. Bxf6 {[%emt 0:00:39]} exf6 {[%emt 0:00:51]} 5. e4 {[%emt 0:00:19]} a6 {[%emt 0:00:43]} 6. a4 {[%emt 0:01:52]} bxa4 {[%emt 0:00:34]} 7. Nc3 {[%emt 0:04:28]} d6 {[%emt 0:00:36]} 8. Bd3 {[%emt 0:00:58]} g6 {[%emt 0:00:17]} 9. Nf3 {[%emt 0:07:03]} Bg7 {[%emt 0:00:47]} 10. O-O {[%emt 0:01:07]} O-O {[%emt 0:00:03]} 11. Nd2 {[%emt 0:04:49]} Nd7 {[%emt 0:01:13]} 12. f4 {[%emt 0:18:36]} Nb6 {[%emt 0:07:38]} 13. Nxa4 {[%emt 0:11:42]} Nxa4 {[%emt 0:04:20]} 14. Rxa4 {[%emt 0:00:39]} Bd7 {[%emt 0:01:15]} 15. Ra2 {[%emt 0:01:42]} Bb5 {[%emt 0:00:55]} 16. Qf3 {[%emt 0:13:04]} Re8 {[%emt 0:08:19]} 17. Rfa1 {[%emt 0:02:16]} Rb8 {[%emt 0:00:18]} 18. c3 {[%emt 0:05:34]} Qe7 {[%emt 0:10:19]} 19. g3 {[%emt 0:04:50]} Rb6 {[%emt 0:02:37]} 20. Bc4 {[%emt 0:04:30]} Qd7 {[%emt 0:05:55]} 21. Qd3 {[%emt 0:03:46]} h5 {[%emt 0:06:16]} 22. Kg2 {[%emt 0:02:50]} Rb7 {[%emt 0:05:10]} 23. Ra5 {[%emt 0:01:13]} Reb8 {[%emt 0:04:55]} 24. R5a2 {[%emt 0:02:11]} Qe8 {[%emt 0:01:15]} 25. Ra5 {[%emt 0:01:41]} f5 {[%emt 0:11:03]} 26. exf5 {[%emt 0:04:04]} Bd7 {[%emt 0:00:08]} 27. fxg6 {[%emt 0:02:36]} fxg6 {[%emt 0:00:01]} 28. b3 {[%emt 0:00:51]} Bf5 {[%emt 0:00:13]} 29. Qf3 {[%emt 0:00:12]} Re7 {[%emt 0:00:08]} 30. R5a2 {[%emt 0:00:52]} Re3 {[%emt 0:00:32]} 31. Qf1 {[%emt 1:30:18]} Bxc3 {[%emt 1:30:32]} 32. Rd1 {[%emt 0:00:16]} Qd7 {[%emt 0:05:47]} 33. Kh1 {[%emt 0:00:46]} Rbe8 {[%emt 0:00:11]} 34. Qf2 {[%emt 0:00:42]} Bd4 {[%emt 0:01:41]} 35. Nf1 {[%emt 0:00:27]} 0-1

[Event "GER-chT Youth Countries 2020"]
[Site "Berlin"]
[Date "2020.10.01"]
[Round "3"]
[White "Kuznecovs, Nikita"]
[Black "Koelle, Tobias"]
[Result "1-0"]
[ECO "B50"]
[WhiteElo "2276"]
[BlackElo "2275"]
[Annotator "ChessBase"]
[PlyCount "109"]
[EventDate "2020.09.30"]
[EventType "team-tourn"]
[EventRounds "7"]
[EventCountry "GER"]
[SourceTitle "playchess.com"]
[Source "ChessBase"]
[SourceQuality "1"]
[TimeControl "30/5400+30:0"]

1. e4 {[%emt 0:00:00]} c5 {[%emt 0:00:19]} 2. Nf3 {[%emt 0:00:00]} d6 {[%emt 0:00:06]} 3. Bc4 {[%emt 0:00:00]} Nf6 {[%emt 0:03:36]} 4. d3 {[%emt 0:00:00]} Nc6 {[%emt 0:00:33]} 5. c3 {[%emt 0:00:08]} e6 {[%emt 0:00:22]} 6. Bb3 {[%emt 0:00:06]} Be7 {[%emt 0:00:44]} 7. O-O {[%emt 0:00:12]} O-O {[%emt 0:00:17]} 8. Nbd2 {[%emt 0:00:13]} b6 {[%emt 0:03:33]} 9. Re1 {[%emt 0:00:15]} Bb7 {[%emt 0:02:59]} 10. Nf1 {[%emt 0:00:09]} Rc8 {[%emt 0:02:15]} 11. Ng3 {[%emt 0:00:15]} Qc7 {[%emt 0:05:35]} 12. Qe2 {[%emt 0:01:35]} Rfe8 {[%emt 0:04:54]} 13. Bc2 {[%emt 0:02:52]} Bf8 {[%emt 0:01:50]} 14. Bg5 {[%emt 0:00:27]} Nd7 {[%emt 0:01:26]} 15. h3 {[%emt 0:01:23]} g6 {[%emt 0:02:46]} 16. Nh2 {[%emt 0:13:10]} h6 {[%emt 0:07:04]} 17. Bd2 {[%emt 0:06:48]} Bg7 {[%emt 0:10:03]} 18. f4 {[%emt 0:12:27]} Qb8 {[%emt 0:04:21]} 19. h4 {[%emt 0:11:02]} h5 {[%emt 0:01:06]} 20. Qf2 {[%emt 0:07:54]} f5 {[%emt 0:08:24]} 21. exf5 {[%emt 0:00:23]} exf5 {[%emt 0:00:11]} 22. Bb3+ {[%emt 0:00:15]} Kf8 {[%emt 0:01:46]} 23. Nf3 {[%emt 0:02:10]} Bf6 {[%emt 0:02:04]} 24. Nxh5 {[%emt 0:10:21]} Rxe1+ {[%emt 0:02:17]} 25. Rxe1 {[%emt 0:00:10]} Re8 {[%emt 0:00:12]} 26. Nxf6 {[%emt 0:05:41]} Nxf6 {[%emt 0:00:05]} 27. Ng5 {[%emt 0:00:10]} d5 {[%emt 0:02:34]} 28. h5 {[%emt 0:09:31]} gxh5 {[%emt 0:00:56]} 29. Rf1 {[%emt 0:00:28]} Qc7 {[%emt 0:01:21]} 30. Qh4 {[%emt 0:01:16]} Qg7 {[%emt 0:00:29]} 31. Bd1 {[%emt 1:33:29]} Qg6 {[%emt 1:31:00]} 32. b4 {[%emt 0:02:00]} Ba6 {[%emt 0:06:57]} 33. Ba4 {[%emt 0:03:18]} b5 {[%emt 0:00:22]} 34. Bd1 {[%emt 0:00:48]} cxb4 {[%emt 0:00:37]} 35. cxb4 {[%emt 0:00:08]} Bb7 {[%emt 0:01:18]} 36. Bf3 {[%emt 0:05:16]} Nd4 {[%emt 0:04:14]} 37. Bc3 {[%emt 0:00:13]} Nxf3+ {[%emt 0:00:04]} 38. gxf3 {[%emt 0:00:05]} Nh7 {[%emt 0:01:12]} 39. Bd4 {[%emt 0:00:16]} Re2 {[%emt 0:02:20]} 40. Kh1 {[%emt 0:02:05]} Nxg5 {[%emt 0:01:22]} 41. fxg5 {[%emt 0:00:31]} Bc8 {[%emt 0:04:02]} 42. Rc1 {[%emt 0:00:00]} Bd7 {[%emt 0:00:00]} 43. Qf4 {[%emt 0:00:00]} Qe6 {[%emt 0:00:00]} 44. g6 {[%emt 0:00:00]} Re1+ {[%emt 0:00:00]} 45. Rxe1 {[%emt 0:00:00]} Qxe1+ {[%emt 0:00:00]} 46. Kg2 {[%emt 0:00:00]} Qe2+ {[%emt 0:00:00]} 47. Kg3 {[%emt 0:00:00]} Qe1+ {[%emt 0:00:00]} 48. Bf2 {[%emt 0:00:00]} h4+ {[%emt 0:00:00]} 49. Qxh4 {[%emt 0:00:00]} Qe5+ {[%emt 0:00:00]} 50. f4 {[%emt 0:00:00]} Qe8 {[%emt 0:00:00]} 51. Qh7 {[%emt 0:00:00]} d4 {[%emt 0:00:00]} 52. g7+ {[%emt 0:00:00]} Kf7 {[%emt 0:00:00]} 53. g8=Q+ {[%emt 0:00:00]} Kf6 {[%emt 0:00:00]} 54. Bxd4+ {[%emt 0:00:00]} Qe5 {[%emt 0:00:00]} 55. fxe5# {[%emt 0:00:00]} 1-0

[Event "GER-chT Youth Countries 2020"]
[Site "Berlin"]
[Date "2020.10.01"]
[Round "3"]
[White "Schneider, Jana"]
[Black "Colbow, Collin"]
[Result "1/2-1/2"]
[ECO "B51"]
[WhiteElo "2270"]
[BlackElo "2210"]
[Annotator "ChessBase"]
[PlyCount "59"]
[EventDate "2020.09.30"]
[EventType "team-tourn"]
[EventRounds "7"]
[EventCountry "GER"]
[SourceTitle "playchess.com"]
[Source "ChessBase"]
[SourceQuality "1"]
[TimeControl "30/5400+30:0"]

1. e4 {[%emt 0:00:00]} c5 {[%emt 0:00:00]} 2. Nf3 {[%emt 0:00:00]} d6 {[%emt 0:00:00]} 3. Bb5+ {[%emt 0:00:00]} Nd7 {[%emt 0:01:23]} 4. d4 {[%emt 0:00:00]} cxd4 {[%emt 0:00:54]} 5. Qxd4 {[%emt 0:00:04]} a6 {[%emt 0:01:34]} 6. Be2 {[%emt 0:00:10]} Ngf6 {[%emt 0:03:41]} 7. O-O {[%emt 0:00:21]} e5 {[%emt 0:07:28]} 8. Qe3 {[%emt 0:01:51]} Be7 {[%emt 0:03:14]} 9. c4 {[%emt 0:03:14]} O-O {[%emt 0:05:58]} 10. Nc3 {[%emt 0:01:34]} Nc5 {[%emt 0:06:20]} 11. Rd1 {[%emt 0:03:51]} Bd7 {[%emt 0:02:30]} 12. Ne1 {[%emt 0:16:42]} Na4 {[%emt 0:22:51]} 13. Nxa4 {[%emt 0:05:25]} Bxa4 {[%emt 0:01:00]} 14. b3 {[%emt 0:00:10]} Bc6 {[%emt 0:00:51]} 15. f3 {[%emt 0:00:19]} Qc7 {[%emt 0:04:55]} 16. Bb2 {[%emt 0:06:02]} Nh5 {[%emt 0:02:27]} 17. Nd3 {[%emt 0:11:45]} f5 {[%emt 0:04:34]} 18. c5 {[%emt 0:08:39]} fxe4 {[%emt 0:02:25]} 19. fxe4 {[%emt 0:01:01]} Nf4 {[%emt 0:01:30]} 20. cxd6 {[%emt 0:06:08]} Bxd6 {[%emt 0:00:28]} 21. Rac1 {[%emt 0:03:26]} Rad8 {[%emt 0:04:55]} 22. Nxf4 {[%emt 0:03:16]} exf4 {[%emt 0:01:36]} 23. Qd4 {[%emt 0:03:28]} Rfe8 {[%emt 0:02:32]} 24. Bc4+ {[%emt 0:03:53]} Kh8 {[%emt 0:00:15]} 25. Bd5 {[%emt 0:00:26]} Be5 {[%emt 0:01:38]} 26. Qf2 {[%emt 0:00:07]} Qe7 {[%emt 0:04:10]} 27. Bxc6 {[%emt 0:01:54]} Rxd1+ {[%emt 0:01:39]} 28. Rxd1 {[%emt 0:00:07]} bxc6 {[%emt 0:00:07]} 29. Bxe5 {[%emt 0:02:17]} Qxe5 {[%emt 0:00:07]} 30. Qd4 {[%emt 0:03:12]} 1/2-1/2

[Event "GER-chT Youth Countries 2020"]
[Site "Berlin"]
[Date "2020.10.01"]
[Round "3"]
[White "Yi, Danny"]
[Black "Nguyen, Huy Dat"]
[Result "1-0"]
[ECO "B37"]
[WhiteElo "2266"]
[BlackElo "2166"]
[Annotator "ChessBase"]
[PlyCount "56"]
[EventDate "2020.09.30"]
[EventType "team-tourn"]
[EventRounds "7"]
[EventCountry "GER"]
[SourceTitle "playchess.com"]
[Source "ChessBase"]
[SourceQuality "1"]
[TimeControl "30/5400+30:0"]

1. e4 {[%emt 0:00:00]} c5 {[%emt 0:00:00]} 2. Nf3 {[%emt 0:00:00]} Nc6 {[%emt 0:00:00]} 3. d4 {[%emt 0:00:00]} cxd4 {[%emt 0:00:00]} 4. Nxd4 {[%emt 0:00:06]} g6 {[%emt 0:00:01]} 5. c4 {[%emt 0:01:40]} Bg7 {[%emt 0:00:10]} 6. Nc2 {[%emt 0:01:10]} Nf6 {[%emt 0:00:06]} 7. Nc3 {[%emt 0:00:10]} O-O {[%emt 0:00:06]} 8. Be2 {[%emt 0:01:16]} b6 {[%emt 0:00:05]} 9. O-O {[%emt 0:01:39]} Bb7 {[%emt 0:04:05]} 10. Be3 {[%emt 0:05:43]} Ne8 {[%emt 0:01:48]} 11. f3 {[%emt 0:05:48]} f5 {[%emt 0:13:31]} 12. Nd4 {[%emt 0:06:46]} e6 {[%emt 0:10:48]} 13. Qd2 {[%emt 0:04:25]} Qe7 {[%emt 0:11:57]} 14. Rad1 {[%emt 0:05:21]} Rd8 {[%emt 0:13:34]} 15. Kh1 {[%emt 0:07:20]} Nxd4 {[%emt 0:03:36]} 16. Bxd4 {[%emt 0:00:29]} fxe4 {[%emt 0:01:40]} 17. fxe4 {[%emt 0:07:28]} Qh4 {[%emt 0:05:09]} 18. Rxf8+ {[%emt 0:04:37]} Bxf8 {[%emt 0:01:19]} 19. Be5 {[%emt 0:02:12]} Bb4 {[%emt 0:15:46]} 20. Bg3 {[%emt 0:09:13]} Qe7 {[%emt 0:04:48]} 21. Bf3 {[%emt 0:13:58]} g5 {[%emt 0:06:42]} 22. Qd3 {[%emt 0:08:50]} Bxc3 {[%emt 0:03:54]} 23. Qxc3 {[%emt 0:00:23]} d6 {[%emt 0:00:56]} 24. Qd4 {[%emt 0:02:10]} Ba8 {[%emt 0:01:27]} 25. h3 {[%emt 0:02:38]} Qg7 {[%emt 0:00:31]} 26. Qd2 {[%emt 0:03:27]} e5 {[%emt 0:00:30]} 27. Qb4 {[%emt 0:01:34]} Qg6 {[%emt 0:00:29]} 28. Qb3 {[%emt 0:02:08]} h5 {[%emt 0:00:04]} 1-0